bitfinex/quotes_SOLUSD_20250712
["timestamp","ask_amount","ask_price","bid_price","bid_amount"]
[1752311116865,0.03,162.2,162.19,78.67034788]
[1752311117672,0.03,162.2,162.19,80.30974788]
[1752311118093,0.03,162.2,162.19,169.21974788]
[1752311118290,0.03,162.2,162.19,168.60318706]
[1752311118888,0.03,162.2,162.19,171.6986372]
[1752311119685,0.03,162.2,162.19,140.4586372]
[1752311119856,0.03,162.2,162.19,140.76378706]
[1752311120374,0.03,162.2,162.19,166.76378706]
[1752311120782,0.03,162.2,162.19,166.96378706]
[1752311121681,0.03,162.2,162.19,166.76378706]
[1752311121868,0.03,162.2,162.19,166.96378706]
[1752311122895,0.03,162.2,162.19,140.96378706]
[1752311131387,0.03,162.2,162.19,140.76378706]
[1752311132497,0.03,162.2,162.19,136.93468397]
[1752311132805,0.03,162.2,162.19,140.76378706]
[1752311136318,0.03,162.2,162.19,140.96378706]
[1752311136494,0.03,162.2,162.19,140.76378706]
[1752311137710,0.03,162.2,162.19,140.96378706]
[1752311142109,0.03,162.21,162.2,16.78468397]
[1752311142407,0.03,162.21,162.2,109.72378706]
[1752311147500,0.71,162.28,162.27,26.0]
[1752311147700,0.71,162.28,162.27,77.81378706]
[1752311149706,0.71,162.28,162.27,42.78468397]
[1752311149910,0.71,162.28,162.27,47.98468397]
[1752311152624,4.53910309,162.28,162.2,238.31]
[1752311152796,3.82910309,162.27,162.24,42.78468397]
[1752311153003,1.5596,162.3,162.25,31.2]
[1752311153004,0.71,162.26,162.25,31.2]
[1752311153205,10.85850309,162.26,162.25,31.2]
[1752311157400,7.0294,162.26,162.25,47.98468397]
[1752311157912,0.71,162.26,162.25,47.98468397]
[1752311158410,0.74,162.28,162.26,16.78468397]
[1752311158615,0.03,162.28,162.27,47.98468397]
[1752311159011,0.03,162.28,162.27,31.2]
[1752311159226,3.85910309,162.28,162.24,16.78468397]
[1752311159399,0.71,162.27,162.24,20.61378706]
[1752311159603,0.71,162.26,162.24,16.78468397]
[1752311159801,0.71,162.26,162.24,20.61378706]
[1752311160210,0.71,162.26,162.24,16.78468397]
[1752311160393,0.71,162.26,162.25,47.98468397]
[1752311160593,4.53910309,162.26,162.25,16.78468397]
[1752311160898,0.71,162.26,162.25,47.98468397]
[1752311162194,0.71,162.26,162.25,31.2]
[1752311162514,4.53910309,162.26,162.25,31.2]
[1752311164817,6.11140309,162.26,162.25,31.2]
[1752311165018,12.39630309,162.26,162.25,31.2]
[1752311165725,8.5672,162.26,162.25,31.2]
[1752311165908,12.39630309,162.26,162.25,31.2]
[1752311168104,12.39630309,162.26,162.17,26.0]
[1752311168105,9.99999999,162.21,162.17,26.0]
[1752311168307,0.71,162.2,162.18,31.2]
[1752311168728,14.53910308,162.2,162.18,31.2]
[1752311168928,10.70999999,162.19,162.18,31.2]
[1752311171411,0.71,162.19,162.18,31.2]
[1752311171615,10.70999999,162.19,162.18,31.2]
[1752311171825,9.99999999,162.21,162.18,35.02910309]
[1752311172028,10.70999999,162.21,162.18,35.02910309]
[1752311172215,10.70999999,162.22,162.2,3.82910309]
[1752311172518,9.99999999,162.23,162.21,35.02910309]
[1752311172832,9.99999999,162.23,162.21,31.2]
[1752311172833,9.99999999,162.22,162.21,31.2]
[1752311173207,10.70999999,162.22,162.21,31.2]
[1752311174814,0.71,162.22,162.21,31.2]
[1752311175022,10.70999999,162.22,162.21,31.2]
[1752311177634,14.53910308,162.22,162.21,31.2]
[1752311184425,20.70790308,162.22,162.21,31.2]
[1752311186946,9.99999999,162.16,162.13,26.0]
[1752311187149,9.99999999,162.15,162.14,31.2]
[1752311188130,10.69999999,162.16,162.14,31.2]
[1752311188326,10.69999999,162.15,162.14,31.2]
[1752311189049,14.52910308,162.15,162.14,31.2]
[1752311189952,10.69999999,162.15,162.14,31.2]
[1752311191949,9.99999999,162.16,162.14,31.2]
[1752311192353,9.99999999,162.17,162.14,35.02910309]
[1752311192651,0.7,162.18,162.16,3.82910309]
[1752311192652,9.99999999,162.18,162.16,3.82910309]
[1752311192857,9.99999999,162.18,162.17,31.2]
[1752311194634,9.99999999,162.17,162.13,3.82910309]
[1752311194835,10.69999999,162.16,162.14,31.2]
[1752311195042,13.82910308,162.16,162.15,31.2]
[1752311195450,9.99999999,162.16,162.15,31.2]
[1752311195643,10.69999999,162.16,162.15,31.2]
[1752311200062,9.99999999,162.17,162.15,35.02910309]
[1752311200254,9.99999999,162.16,162.15,35.02910309]
[1752311201264,9.99999999,162.17,162.15,35.02910309]
[1752311202165,9.99999999,162.16,162.15,35.02910309]
[1752311202551,9.99999999,162.17,162.15,35.02910309]
[1752311202766,10.02999999,162.18,162.15,35.02910309]
[1752311203268,9.99999999,162.17,162.15,35.02910309]
[1752311204347,10.02999999,162.18,162.15,35.02910309]
[1752311204851,10.71999999,162.18,162.15,35.02910309]
[1752311209673,10.02999999,162.18,162.15,35.02910309]
[1752311210771,9.99999999,162.17,162.15,35.02910309]
[1752311212680,9.99999999,162.17,162.12,42.78468397]
[1752311212681,0.69,162.16,162.13,29.82910309]
[1752311212984,10.68999999,162.17,162.14,31.2]
[1752311213762,0.69,162.17,162.14,31.2]
[1752311213966,10.68999999,162.17,162.14,31.2]
[1752311214172,0.69,162.17,162.14,35.02910309]
[1752311214577,10.68999999,162.17,162.14,35.02910309]
[1752311215082,10.02999999,162.18,162.16,3.82910309]
[1752311215379,10.71999999,162.18,162.17,31.2]
[1752311217980,10.02999999,162.18,162.17,31.2]
[1752311218477,0.03,162.18,162.17,31.2]
[1752311218878,0.03,162.18,162.17,35.02910309]
[1752311223485,0.03,162.18,162.11,21.4356]
[1752311223486,4.54910309,162.18,162.13,29.82910309]
[1752311223716,9.99999999,162.17,162.14,31.2]
[1752311223861,9.99999999,162.16,162.14,31.2]
[1752311224064,10.68999999,162.16,162.14,31.2]
[1752311225989,0.69,162.15,162.14,31.2]
[1752311226377,10.68999999,162.15,162.14,31.2]
[1752311226686,9.99999999,162.14,162.11,26.0]
[1752311226880,9.99999999,162.14,162.12,31.2]
[1752311227077,10.68999999,162.13,162.12,31.2]
[1752311227281,9.99999999,162.12,162.08,23.82707049]
[1752311227472,14.51910308,162.11,162.08,3.21328343]
[1752311227671,1.6445,162.14,162.08,3.21328343]
[1752311227672,4.51910309,162.1,162.08,3.21328343]
[1752311227873,13.82910308,162.11,162.09,31.2]
[1752311228073,9.99999999,162.11,162.09,31.2]
[1752311228285,9.99999999,162.1,162.09,31.2]
[1752311228791,10.68999999,162.1,162.09,31.2]
[1752311230984,0.69,162.1,162.09,31.2]
[1752311231186,14.51910308,162.1,162.09,31.2]
[1752311231706,10.68999999,162.1,162.09,31.2]
[1752311232402,9.99999999,162.09,162.07,26.0]
[1752311232596,10.68999999,162.09,162.08,31.2]
[1752311233606,9.99999999,162.09,162.08,31.2]
[1752311233804,10.68999999,162.12,162.08,35.02910309]
[1752311233979,10.68999999,162.12,162.09,3.82910309]
[1752311234307,9.99999999,162.11,162.1,31.2]
[1752311234483,10.68999999,162.11,162.1,31.2]
[1752311234998,9.99999999,162.11,162.1,31.2]
[1752311235401,10.68999999,162.11,162.1,31.2]
[1752311236386,0.69,162.11,162.1,31.2]
[1752311236581,9.99999999,162.11,162.1,31.2]
[1752311236796,10.68999999,162.13,162.1,35.02910309]
[1752311237004,9.99999999,162.12,162.11,3.82910309]
[1752311237186,10.68999999,162.13,162.11,3.82910309]
[1752311237396,10.68999999,162.13,162.12,31.2]
[1752311237706,9.99999999,162.13,162.12,31.2]
[1752311237916,10.68999999,162.13,162.12,31.2]
[1752311244510,9.99999999,162.13,162.12,31.2]
[1752311244812,10.68999999,162.13,162.1,29.82910309]
[1752311245012,0.69,162.12,162.11,31.2]
[1752311246698,10.68999999,162.12,162.11,31.2]
[1752311247018,9.99999999,162.12,162.11,35.02910309]
[1752311247621,10.68999999,162.12,162.11,35.02910309]
[1752311247819,10.68999999,162.12,162.11,31.2]
[1752311248624,10.68999999,162.14,162.11,35.02910309]
[1752311248831,10.68999999,162.14,162.12,3.82910309]
[1752311249003,9.99999999,162.14,162.13,31.2]
[1752311250229,10.68999999,162.14,162.13,31.2]
[1752311261332,10.71999999,162.14,162.13,31.2]
[1752311263124,9.99999999,162.12,162.07,3.82910309]
[1752311263331,9.99999999,162.1,162.08,35.02910309]
[1752311263532,10.68999999,162.11,162.09,3.82910309]
[1752311263832,0.69,162.11,162.1,31.2]
[1752311264018,10.68999999,162.11,162.1,31.2]
[1752311265138,0.69,162.11,162.1,31.2]
[1752311265333,9.99999999,162.13,162.1,35.02910309]
[1752311265531,9.99999999,162.12,162.11,3.82910309]
[1752311266535,10.02999999,162.14,162.11,3.82910309]
[1752311266836,10.02999999,162.14,162.1,31.2]
[1752311266837,0.03,162.14,162.13,3.82910309]
[1752311268523,0.03,162.14,162.13,46.61378706]
[1752311270843,0.03,162.14,162.13,77.79378706]
[1752311272643,0.03,162.14,162.13,73.96468397]
[1752311272940,0.03,162.14,162.13,77.79378706]
[1752311275139,0.03,162.14,162.13,61.00910309]
[1752311275442,0.03,162.14,162.13,35.00910309]
[1752311275838,0.71,162.14,162.13,35.00910309]
[1752311276435,0.03,162.14,162.13,35.00910309]
[1752311279643,0.71,162.14,162.13,31.18]
[1752311279839,0.71,162.14,162.13,35.00910309]
[1752311280720,0.71,162.14,162.13,31.18]
[1752311280942,10.70999999,162.14,162.13,31.18]
[1752311284039,10.70999999,162.14,162.13,35.00910309]
[1752311284040,0.03,162.14,162.13,35.00910309]
[1752311284424,0.71,162.14,162.13,35.00910309]
[1752311285737,0.03,162.14,162.13,35.00910309]
[1752311289656,0.03,162.14,162.13,31.18]
[1752311289861,0.71,162.14,162.13,31.18]
[1752311290230,10.70999999,162.14,162.13,31.18]
[1752311300761,14.53910308,162.14,162.13,31.18]
[1752311306940,10.70999999,162.14,162.13,31.18]
[1752311307143,10.02999999,162.14,162.13,35.00910309]
[1752311307560,0.03,162.14,162.13,35.00910309]
[1752311307766,10.02999999,162.14,162.13,35.00910309]
[1752311308445,0.03,162.14,162.13,35.00910309]
[1752311308644,0.03,162.14,162.13,61.00910309]
[1752311310459,0.03,162.14,162.13,77.79378706]
[1752311317670,0.03,162.14,162.13,73.96468397]
[1752311317874,0.03,162.14,162.13,77.79378706]
[1752311319054,0.69,162.14,162.13,77.79378706]
[1752311319572,0.03,162.14,162.13,77.79378706]
[1752311321875,0.69,162.14,162.08,14.42910309]
[1752311322087,13.82910308,162.13,162.08,3.82910309]
[1752311322377,13.82910308,162.13,162.09,31.16]
[1752311322378,9.99999999,162.11,162.09,31.16]
[1752311322673,0.66,162.1,162.09,31.16]
[1752311323356,10.65999999,162.1,162.09,31.16]
[1752311324877,0.66,162.1,162.09,31.16]
[1752311325057,10.65999999,162.1,162.09,31.16]
[1752311325257,10.68999999,162.1,162.09,31.16]
[1752311325893,0.69,162.1,162.09,31.16]
[1752311327670,10.68999999,162.1,162.09,31.16]
[1752311328282,0.69,162.1,162.09,31.16]
[1752311328484,10.68999999,162.1,162.09,31.16]
[1752311328802,0.69,162.1,162.09,31.16]
[1752311330871,10.68999999,162.1,162.09,31.16]
[1752311331579,0.69,162.1,162.09,31.16]
[1752311333385,9.99999999,162.11,162.09,34.98910309]
[1752311333588,10.68999999,162.12,162.1,3.82910309]
[1752311333793,10.68999999,162.12,162.07,26.0]
[1752311333794,9.99999999,162.11,162.07,26.0]
[1752311333962,10.68999999,162.12,162.1,3.82910309]
[1752311334285,10.68999999,162.12,162.11,34.98910309]
[1752311334483,9.99999999,162.13,162.11,34.98910309]
[1752311334661,9.99999999,162.12,162.11,31.16]
[1752311334864,10.68999999,162.12,162.11,34.98910309]
[1752311336487,0.69,162.12,162.11,34.98910309]
[1752311336786,10.68999999,162.12,162.11,34.98910309]
[1752311336983,0.69,162.12,162.11,34.98910309]
[1752311337185,10.68999999,162.12,162.11,34.98910309]
[1752311337683,10.68999999,162.12,162.11,31.16]
[1752311339266,0.69,162.12,162.11,31.16]
[1752311339468,10.68999999,162.12,162.11,31.16]
[1752311344776,14.51910308,162.12,162.11,31.16]
[1752311352804,9.99999999,162.07,162.05,29.82910309]
[1752311352996,10.68999999,162.07,162.06,31.16]
[1752311354296,10.70999999,162.07,162.06,31.16]
[1752311355299,9.99999999,162.07,162.06,34.98910309]
[1752311356596,10.70999999,162.07,162.06,31.16]
[1752311357796,9.99999999,162.07,162.06,31.16]
[1752311357998,9.99999999,162.07,162.06,34.98910309]
[1752311358387,10.70999999,162.07,162.06,31.16]
[1752311359513,10.70999999,162.07,162.06,34.98910309]
[1752311361006,9.99999999,162.11,162.06,34.98910309]
[1752311361311,9.99999999,162.12,162.1,3.82910309]
[1752311361490,9.99999999,162.12,162.11,34.98910309]
[1752311361888,9.99999999,162.12,162.11,31.16]
[1752311362089,9.99999999,162.12,162.11,34.98910309]
[1752311362600,9.99999999,162.12,162.11,31.16]
[1752311362897,10.70999999,162.12,162.11,34.98910309]
[1752311364786,10.70999999,162.12,162.11,31.16]
[1752311367302,9.99999999,162.12,162.11,34.98910309]
[1752311368417,10.02999999,162.14,162.11,34.98910309]
[1752311368620,10.02999999,162.14,162.13,3.82910309]
[1752311368797,0.03,162.14,162.13,34.98910309]
[1752311368997,10.02999999,162.14,162.13,34.98910309]
[1752311369701,10.73999999,162.14,162.13,31.16]
[1752311372705,10.73999999,162.14,162.13,34.98910309]
[1752311373615,10.02999999,162.14,162.13,34.98910309]
[1752311374221,0.03,162.14,162.13,34.98910309]
[1752311374403,10.02999999,162.14,162.13,34.98910309]
[1752311374606,10.02999999,162.14,162.13,31.16]
[1752311374916,10.73999999,162.14,162.13,34.98910309]
[1752311375221,10.02999999,162.14,162.13,34.98910309]
[1752311375404,0.03,162.14,162.13,34.98910309]
[1752311377215,9.99999999,162.13,162.12,3.82910309]
[1752311377528,10.70999999,162.13,162.12,34.98910309]
[1752311378228,0.71,162.13,162.12,34.98910309]
[1752311378397,10.70999999,162.13,162.12,34.98910309]
[1752311382627,10.70999999,162.13,162.12,31.16]
[1752311387805,9.99999999,162.13,162.12,34.98910309]
[1752311388711,10.69999999,162.13,162.12,34.98910309]
[1752311389211,9.99999999,162.13,162.12,34.98910309]
[1752311389820,10.69999999,162.13,162.12,31.16]
[1752311391126,10.72999999,162.13,162.12,31.16]
[1752311399427,14.55910308,162.13,162.12,31.16]
[1752311400018,10.72999999,162.13,162.12,31.16]
[1752311407246,0.03,162.13,162.12,34.98910309]
[1752311410351,0.03,162.13,162.12,77.77378706]
[1752311410648,0.03,162.13,162.12,51.77378706]
[1752311411447,0.03,162.14,162.12,51.77378706]
[1752311411644,0.03,162.14,162.13,3.82910309]
[1752311416751,0.03,162.14,162.13,34.96910309]
[1752311416960,0.03,162.14,162.13,51.75378706]
[1752311420245,0.03,162.18,162.16,26.0]
[1752311420561,0.03,162.18,162.17,34.96910309]
[1752311423344,0.03,162.18,162.17,51.75378706]
[1752311423757,9.99999999,162.23,162.2,26.0]
[1752311423940,9.99999999,162.23,162.22,3.82910309]
[1752311424139,10.65999999,162.23,162.22,3.82910309]
[1752311426065,0.66,162.23,162.22,3.82910309]
[1752311426262,10.65999999,162.23,162.22,3.82910309]
[1752311427166,0.66,162.23,162.22,3.82910309]
[1752311427365,10.65999999,162.23,162.22,3.82910309]
[1752311428153,10.65999999,162.23,162.2,26.0]
[1752311428351,0.66,162.22,162.2,29.82910309]
[1752311428670,10.65999999,162.22,162.2,29.82910309]
[1752311428844,0.66,162.21,162.2,29.82910309]
[1752311429170,0.66,162.21,162.2,3.82910309]
[1752311429465,0.66,162.21,162.2,31.12]
[1752311429650,10.65999999,162.21,162.2,31.12]
[1752311431164,10.65999999,162.21,162.19,3.32910309]
[1752311431479,0.66,162.21,162.2,3.82910309]
[1752311431646,10.65999999,162.21,162.2,3.82910309]
[1752311431847,0.66,162.21,162.2,3.82910309]
[1752311432165,10.65999999,162.21,162.2,3.82910309]
[1752311432373,10.65999999,162.21,162.2,34.94910309]
[1752311433270,0.66,162.21,162.2,34.94910309]
[1752311433455,10.65999999,162.21,162.2,34.94910309]
[1752311434160,0.66,162.21,162.2,34.94910309]
[1752311434369,10.65999999,162.21,162.2,31.12]
[1752311434554,0.66,162.21,162.2,31.12]
[1752311434760,10.65999999,162.21,162.2,31.12]
[1752311435959,14.48910308,162.21,162.2,31.12]
[1752311439473,9.99999999,162.14,162.1,3.82910309]
[1752311439678,10.65999999,162.14,162.11,34.94910309]
[1752311439975,10.65999999,162.13,162.11,31.12]
[1752311440180,10.65999999,162.12,162.11,31.12]
[1752311445783,9.99999999,162.13,162.11,34.94910309]
[1752311446101,9.99999999,162.13,162.12,3.82910309]
[1752311446768,10.66999999,162.13,162.12,3.82910309]
[1752311450082,10.66999999,162.13,162.11,34.94910309]
[1752311450260,9.99999999,162.12,162.11,34.94910309]
[1752311450671,10.66999999,162.13,162.11,34.94910309]
[1752311450857,9.99999999,162.12,162.11,34.94910309]
[1752311451277,10.66999999,162.12,162.11,34.94910309]
[1752311452285,9.99999999,162.13,162.11,34.94910309]
[1752311452584,9.99999999,162.13,162.12,3.82910309]
[1752311453388,10.66999999,162.13,162.11,31.12]
[1752311453586,9.99999999,162.14,162.12,3.82910309]
[1752311453894,10.66999999,162.14,162.13,31.12]
[1752311455167,9.99999999,162.16,162.13,34.94910309]
[1752311455489,10.66999999,162.17,162.15,3.82910309]
[1752311455703,10.66999999,162.17,162.16,31.12]
[1752311459106,9.99999999,162.17,162.16,34.94910309]
[1752311459479,10.66999999,162.18,162.16,34.94910309]
[1752311459804,9.99999999,162.17,162.16,34.94910309]
[1752311460181,10.66999999,162.18,162.16,34.94910309]
[1752311460382,9.99999999,162.17,162.16,34.94910309]
[1752311460601,10.66999999,162.17,162.16,31.12]
[1752311461306,9.99999999,162.17,162.16,34.94910309]
[1752311461674,9.99999999,162.18,162.16,34.94910309]
[1752311461899,10.66999999,162.17,162.11,42.84468397]
[1752311462091,9.99999999,162.15,162.13,3.82910309]
[1752311462294,10.66999999,162.15,162.14,31.14]
[1752311462496,10.66999999,162.15,162.11,3.88910309]
[1752311462692,10.66999999,162.14,162.12,34.98910309]
[1752311463003,9.99999999,162.14,162.12,34.98910309]
[1752311463805,11.88050309,162.17,162.13,3.82910309]
[1752311463806,9.99999999,162.16,162.13,3.82910309]
[1752311464005,9.99999999,162.16,162.15,3.82910309]
[1752311465011,0.67,162.18,162.15,3.82910309]
[1752311465211,0.67,162.18,162.16,34.98910309]
[1752311465507,0.67,162.18,162.17,31.16]
[1752311465706,10.66999999,162.18,162.17,31.16]
[1752311465881,9.99999999,162.18,162.17,34.98910309]
[1752311466587,0.03,162.19,162.17,34.98910309]
[1752311466905,0.03,162.19,162.18,3.82910309]
[1752311467286,10.02999999,162.19,162.18,3.82910309]
[1752311467491,10.69999999,162.19,162.18,3.82910309]
[1752311468310,10.02999999,162.19,162.18,3.82910309]
[1752311472616,10.69999999,162.19,162.18,3.82910309]
[1752311472916,10.69999999,162.19,162.17,34.98910309]
[1752311473095,0.67,162.18,162.17,3.82910309]
[1752311473300,0.67,162.18,162.17,34.96910309]
[1752311473702,10.66999999,162.18,162.17,31.14]
[1752311474215,10.02999999,162.19,162.17,34.96910309]
[1752311474412,10.02999999,162.19,162.18,3.82910309]
[1752311475715,10.69999999,162.19,162.18,3.82910309]
[1752311475903,10.69999999,162.19,162.17,34.96910309]
[1752311476296,9.99999999,162.18,162.17,34.96910309]
[1752311477618,0.67,162.18,162.17,34.96910309]
[1752311477820,9.99999999,162.16,162.13,29.82910309]
[1752311478001,10.66999999,162.16,162.14,34.96910309]
[1752311478622,0.67,162.16,162.14,34.96910309]
[1752311479113,10.66999999,162.16,162.14,34.96910309]
[1752311479611,10.66999999,162.16,162.15,3.82910309]
[1752311479819,9.99999999,162.16,162.15,3.82910309]
[1752311480615,8.2178,162.19,162.15,3.82910309]
[1752311480616,9.99999999,162.18,162.15,3.82910309]
[1752311480825,18.88779999,162.19,162.17,3.82910309]
[1752311481121,18.21779999,162.19,162.18,31.14]
[1752311481518,18.88779999,162.19,162.18,31.14]
[1752311483027,10.02999999,162.19,162.18,31.14]
[1752311483326,10.02999999,162.19,162.18,34.96910309]
[1752311483908,10.69999999,162.19,162.18,31.14]
[1752311486631,0.7,162.19,162.18,31.14]
[1752311486830,0.03,162.19,162.18,31.14]
[1752311487011,10.02999999,162.19,162.18,31.14]
[1752311487831,10.69999999,162.19,162.18,31.14]
[1752311489025,10.02999999,162.19,162.18,34.96910309]
[1752311491442,0.03,162.19,162.18,34.96910309]
[1752311491921,10.02999999,162.19,162.18,34.96910309]
[1752311493735,10.69999999,162.19,162.18,34.96910309]
[1752311493976,10.69999999,162.19,162.18,31.12]
[1752311494544,0.7,162.19,162.18,31.12]
[1752311494753,10.69999999,162.19,162.18,31.12]
[1752311495534,0.7,162.19,162.18,31.12]
[1752311495740,10.69999999,162.19,162.18,34.94910309]
[1752311496739,0.03,162.19,162.18,34.94910309]
[1752311497618,0.03,162.19,162.18,60.94910309]
[1752311498815,0.7,162.19,162.18,3.82910309]
[1752311499021,0.7,162.19,162.18,34.94910309]
[1752311499534,0.03,162.19,162.18,34.94910309]
[1752311504645,0.03,162.19,162.18,35.00910309]
[1752311517465,0.03,162.19,162.18,51.79378706]
[1752311523781,0.03,162.19,162.18,47.96468397]
[1752311523975,0.03,162.19,162.18,51.79378706]
[1752311524175,0.03,162.19,162.18,54.81221359]
[1752311525880,0.03,162.19,162.18,50.9831105]
[1752311526087,0.03,162.19,162.18,54.81221359]
[1752311530787,0.03,162.19,162.18,53.42996543]
[1752311533893,0.03,162.19,162.18,50.9831105]
[1752311534075,0.03,162.19,162.18,53.42996543]
[1752311534678,0.65,162.24,162.22,26.0]
[1752311534988,0.65,162.25,162.23,33.54685493]
[1752311535187,0.65,162.25,162.24,2.44685493]
[1752311536783,10.64999999,162.25,162.24,3.82166149]
[1752311537593,0.65,162.25,162.24,3.82166149]
[1752311537767,10.64999999,162.25,162.24,3.82166149]
[1752311539087,0.65,162.25,162.24,3.82166149]
[1752311542295,10.64999999,162.25,162.24,3.82166149]
[1752311544270,10.64999999,162.25,162.24,31.1]
[1752311544483,0.65,162.25,162.22,29.82166149]
[1752311544692,9.99999999,162.24,162.23,31.1]
[1752311544999,10.64999999,162.24,162.23,34.92166149]
[1752311546102,0.65,162.24,162.23,34.92166149]
[1752311546280,10.64999999,162.24,162.23,34.92166149]
[1752311546784,0.65,162.24,162.23,34.92166149]
[1752311546986,10.64999999,162.24,162.23,34.92166149]
[1752311547188,0.65,162.24,162.23,34.92166149]
[1752311547388,10.64999999,162.24,162.23,34.92166149]
[1752311547881,10.64999999,162.26,162.23,34.92166149]
[1752311548083,9.99999999,162.26,162.25,3.82166149]
[1752311548290,18.22209999,162.27,162.25,34.92166149]
[1752311548601,18.22209999,162.27,162.26,3.82166149]
[1752311549104,18.87209999,162.27,162.26,3.82166149]
[1752311549304,0.65,162.27,162.26,3.82166149]
[1752311549485,0.03,162.28,162.26,3.82166149]
[1752311549692,0.03,162.28,162.25,57.1]
[1752311549693,0.68,162.28,162.27,34.92166149]
[1752311550586,10.67999999,162.28,162.27,34.92166149]
[1752311551507,0.68,162.28,162.27,34.92166149]
[1752311552100,0.03,162.28,162.27,34.92166149]
[1752311552602,10.02999999,162.28,162.27,34.92166149]
[1752311552797,10.67999999,162.28,162.27,34.92166149]
[1752311554032,10.67999999,162.28,162.27,31.1]
[1752311559013,9.99999999,162.27,162.25,3.82166149]
[1752311559214,9.99999999,162.27,162.26,31.08]
[1752311559819,10.64999999,162.27,162.26,31.08]
[1752311563910,0.65,162.27,162.26,31.08]
[1752311564110,10.64999999,162.27,162.26,31.08]
[1752311565205,0.65,162.27,162.26,31.08]
[1752311565412,10.64999999,162.27,162.26,31.08]
[1752311565704,11.54609999,162.26,162.19,0.06]
[1752311565913,9.99999999,162.24,162.21,3.82166149]
[1752311566097,0.68,162.23,162.22,31.08]
[1752311566506,10.67999999,162.23,162.22,31.08]
[1752311567813,10.67999999,162.23,162.19,0.06]
[1752311567814,9.99999999,162.22,162.19,0.06]
[1752311568112,9.99999999,162.21,162.2,31.08]
[1752311568316,10.67999999,162.21,162.2,31.08]
[1752311570015,16.01846148,162.21,162.2,31.08]
[1752311570393,22.57066148,162.21,162.2,31.08]
[1752311571299,18.74899999,162.21,162.2,31.08]
[1752311571713,22.57066148,162.21,162.2,31.08]
[1752311573302,18.74899999,162.21,162.2,31.08]
[1752311575607,9.99999999,162.21,162.2,34.90166149]
[1752311582433,10.67999999,162.21,162.2,31.08]
[1752311584131,10.67999999,162.21,162.2,34.90166149]
[1752311585908,9.99999999,162.21,162.2,34.90166149]
[1752311586522,10.67999999,162.21,162.2,34.90166149]
[1752311586937,9.99999999,162.21,162.2,34.90166149]
[1752311587918,10.67999999,162.21,162.2,34.90166149]
[1752311588323,9.99999999,162.21,162.2,34.90166149]
[1752311589615,9.99999999,162.22,162.2,34.90166149]
[1752311589815,9.99999999,162.22,162.21,3.82166149]
[1752311590115,10.67999999,162.22,162.21,3.82166149]
[1752311590315,9.99999999,162.22,162.21,3.82166149]
[1752311590620,10.67999999,162.22,162.21,3.82166149]
[1752311591319,9.99999999,162.21,162.2,34.90166149]
[1752311591521,10.67999999,162.21,162.2,34.90166149]
[1752311592033,10.70999999,162.21,162.2,34.90166149]
[1752311592432,10.70999999,162.21,162.2,31.08]
[1752311596624,10.70999999,162.21,162.2,34.90166149]
[1752311597437,0.03,162.21,162.2,34.90166149]
[1752311597849,10.02999999,162.21,162.2,34.90166149]
[1752311598216,0.03,162.21,162.2,34.90166149]
[1752311600432,0.03,162.21,162.2,51.68634546]
[1752311602422,10.67999999,162.27,162.25,3.82166149]
[1752311602622,10.67999999,162.27,162.26,34.90166149]
[1752311603120,10.67999999,162.27,162.26,31.08]
[1752311605258,9.99999999,162.24,162.23,29.82166149]
[1752311605547,9.99999999,162.24,162.23,60.90166149]
[1752311605920,10.67999999,162.24,162.23,60.90166149]
[1752311608346,9.99999999,162.24,162.23,60.90166149]
[1752311608545,10.67999999,162.25,162.23,60.90166149]
[1752311608951,10.67999999,162.25,162.24,3.82166149]
[1752311610128,10.67999999,162.25,162.23,60.90166149]
[1752311610450,0.68,162.24,162.23,60.90166149]
[1752311610650,10.67999999,162.24,162.23,57.08]
[1752311613730,9.99999999,162.23,162.2,3.82166149]
[1752311613928,10.67999999,162.22,162.21,31.08]
[1752311616833,14.50166148,162.22,162.21,31.08]